[Event "Late-Titled-Tuesday-Blitz-May-28-2024"]
[Site "Chess.com"]
[Date "2024.05.28"]
[Round "6"]
[White "Slovineanu"]
[Black "NikitaShnadrygin"]
[Result "1-0"]
[WhiteElo "2555"]
[BlackElo "2721"]
[TimeControl "180+1"]
[EndTime "15:07:30 PDT"]
[Termination "Slovineanu won by resignation"]

1. d4 {[%clk 0:03:00.9]} 1... d5 {[%clk 0:02:59.7]} 2. Nf3 {[%clk 0:03:00.9]}
2... Nc6 {[%clk 0:03:00.6]} 3. c4 {[%clk 0:02:57.2]} 3... Bg4 {[%clk 0:03:00.1]}
4. cxd5 {[%clk 0:02:57.2]} 4... Bxf3 {[%clk 0:03:00.4]} 5. gxf3 {[%clk
0:02:57.6]} 5... Qxd5 {[%clk 0:02:59.8]} 6. e3 {[%clk 0:02:57.9]} 6... e5 {[%clk
0:03:00.5]} 7. Nc3 {[%clk 0:02:58.3]} 7... Bb4 {[%clk 0:03:01.2]} 8. Bd2 {[%clk
0:02:58.7]} 8... Bxc3 {[%clk 0:03:01.9]} 9. bxc3 {[%clk 0:02:59.1]} 9... Nf6
{[%clk 0:03:02.6]} 10. c4 {[%clk 0:02:52.8]} 10... Qd6 {[%clk 0:03:02.3]} 11. d5
{[%clk 0:02:50.8]} 11... Ne7 {[%clk 0:03:02.1]} 12. Qb3 {[%clk 0:02:44]} 12...
b6 {[%clk 0:03:00.2]} 13. Bb4 {[%clk 0:02:23]} 13... c5 {[%clk 0:02:59.6]} 14.
dxc6 {[%clk 0:02:19.5]} 14... Qxc6 {[%clk 0:02:58.9]} 15. Bg2 {[%clk 0:02:20.1]}
15... Nd7 {[%clk 0:02:56.9]} 16. O-O {[%clk 0:02:17]} 16... Nc5 {[%clk
0:02:56.7]} 17. Qc2 {[%clk 0:02:14.9]} 17... O-O {[%clk 0:02:43]} 18. f4 {[%clk
0:02:12.7]} 18... e4 {[%clk 0:02:43.5]} 19. Bxc5 {[%clk 0:02:12.3]} 19... Qxc5
{[%clk 0:02:44.1]} 20. Qxe4 {[%clk 0:02:10.4]} 20... Rac8 {[%clk 0:02:41.5]} 21.
Rac1 {[%clk 0:02:09.3]} 21... Nf5 {[%clk 0:02:41.2]} 22. Qd5 {[%clk 0:02:03.6]}
22... Nd6 {[%clk 0:02:37.7]} 23. Rfd1 {[%clk 0:01:39.2]} 23... Nxc4 {[%clk
0:02:33.1]} 24. Qxc5 {[%clk 0:01:34.3]} 24... Rxc5 {[%clk 0:02:34]} 25. Rd7
{[%clk 0:01:31.8]} 25... a5 {[%clk 0:02:31.4]} 26. Bd5 {[%clk 0:01:27.9]} 26...
b5 {[%clk 0:02:28.4]} 27. a4 {[%clk 0:01:18]} 27... Nb6 {[%clk 0:02:08.3]} 28.
Rxc5 {[%clk 0:01:16.8]} 28... Nxd7 {[%clk 0:02:08.7]} 29. Rxb5 {[%clk 0:01:17]}
29... Rd8 {[%clk 0:01:59.8]} 30. Rxa5 {[%clk 0:01:12.9]} 30... Nb6 {[%clk
0:01:59.2]} 31. Bf3 {[%clk 0:01:07]} 31... g6 {[%clk 0:01:56.6]} 32. Ra6 {[%clk
0:01:07]} 32... Nc4 {[%clk 0:01:56.8]} 33. a5 {[%clk 0:01:04.9]} 33... Rd2
{[%clk 0:01:56.3]} 34. Ra8+ {[%clk 0:01:02.1]} 34... Kg7 {[%clk 0:01:56.3]} 35.
a6 {[%clk 0:01:02.6]} 35... Ra2 {[%clk 0:01:53.5]} 36. a7 {[%clk 0:01:01.3]}
36... Nd2 {[%clk 0:01:54.4]} 37. Kg2 {[%clk 0:00:58.8]} 37... Nxf3 {[%clk
0:01:52.3]} 38. Kxf3 {[%clk 0:00:58.8]} 38... h5 {[%clk 0:01:53.2]} 39. h4
{[%clk 0:00:58]} 39... Kf6 {[%clk 0:01:53.5]} 40. e4 {[%clk 0:00:56.2]} 40...
Ra3+ {[%clk 0:01:53.6]} 41. Ke2 {[%clk 0:00:56.4]} 41... Kg7 {[%clk 0:01:53.8]}
42. f3 {[%clk 0:00:46.8]} 42... Kf6 {[%clk 0:01:53.3]} 43. Kf2 {[%clk
0:00:39.9]} 43... Kg7 {[%clk 0:01:52.8]} 44. e5 {[%clk 0:00:39.9]} 44... Kh7
{[%clk 0:01:49.4]} 45. Ke2 {[%clk 0:00:39.2]} 45... Kg7 {[%clk 0:01:49.9]} 46.
Kd2 {[%clk 0:00:39.9]} 46... Kh7 {[%clk 0:01:50.4]} 47. Kc2 {[%clk 0:00:40.6]}
47... Kg7 {[%clk 0:01:51]} 48. Kb2 {[%clk 0:00:41.3]} 48... Ra6 {[%clk
0:01:51.2]} 49. Kc3 {[%clk 0:00:41.3]} 49... Ra1 {[%clk 0:01:50.4]} 50. Kd4
{[%clk 0:00:39.6]} 50... Ra4+ {[%clk 0:01:48.8]} 51. Kc5 {[%clk 0:00:38.7]}
51... Ra1 {[%clk 0:01:47.6]} 52. Kd6 {[%clk 0:00:31.5]} 52... Ra6+ {[%clk
0:01:46.7]} 53. Ke7 {[%clk 0:00:31.5]} 53... Re6+ {[%clk 0:01:45.9]} 54. Kd7
{[%clk 0:00:31.7]} 54... Ra6 {[%clk 0:01:46.8]} 55. e6 {[%clk 0:00:18.4]} 55...
fxe6 {[%clk 0:01:41.1]} 56. Ke7 {[%clk 0:00:17]} 56... Ra1 {[%clk 0:01:41]} 57.
Kxe6 {[%clk 0:00:16.4]} 57... Re1+ {[%clk 0:01:41.2]} 58. Kd5 {[%clk 0:00:15.8]}
58... Rd1+ {[%clk 0:01:41.6]} 59. Ke4 {[%clk 0:00:16.1]} 59... Re1+ {[%clk
0:01:42]} 60. Kd3 {[%clk 0:00:16.6]} 60... Rd1+ {[%clk 0:01:40.2]} 61. Ke2
{[%clk 0:00:16.7]} 61... Ra1 {[%clk 0:01:41.1]} 62. f5 {[%clk 0:00:17.2]} 62...
gxf5 {[%clk 0:01:38.8]} 63. Ke3 {[%clk 0:00:17.7]} 63... Ra4 {[%clk 0:01:38.9]}
64. Kf2 {[%clk 0:00:15.3]} 64... Kh7 {[%clk 0:01:37.5]} 65. Kg3 {[%clk
0:00:15.5]} 65... Kg7 {[%clk 0:01:37.7]} 66. Kf2 {[%clk 0:00:16]} 66... Kh7
{[%clk 0:01:37.7]} 67. Ke2 {[%clk 0:00:16.6]} 67... Kg7 {[%clk 0:01:37.8]} 68.
Kd3 {[%clk 0:00:17.2]} 68... Kh7 {[%clk 0:01:37.7]} 69. Kc3 {[%clk 0:00:17.7]}
69... Kg7 {[%clk 0:01:37.5]} 70. Kb3 {[%clk 0:00:18.1]} 70... Ra6 {[%clk
0:01:38]} 71. Kc4 {[%clk 0:00:18.3]} 71... Ra1 {[%clk 0:01:34.1]} 72. Kd5 {[%clk
0:00:18]} 72... Ra5+ {[%clk 0:01:22.8]} 73. Ke6 {[%clk 0:00:18.1]} 73... f4
{[%clk 0:01:19.7]} 74. Re8 {[%clk 0:00:16.3]} 74... Rxa7 {[%clk 0:01:17.7]} 75.
Re7+ {[%clk 0:00:16.6]} 75... Rxe7+ {[%clk 0:01:17.9]} 76. Kxe7 {[%clk
0:00:17.3]} 76... Kg8 {[%clk 0:01:17.6]} 77. Kf6 {[%clk 0:00:17.6]} 77... Kh7
{[%clk 0:01:17.7]} 78. Kg5 {[%clk 0:00:18]} 78... Kg7 {[%clk 0:01:18.3]} 79.
Kxf4 {[%clk 0:00:17.3]} 79... Kf6 {[%clk 0:01:19.2]} 80. Ke4 {[%clk 0:00:17.3]}
80... Ke6 {[%clk 0:01:19.8]} 81. f4 {[%clk 0:00:17.6]} 81... Kf6 {[%clk
0:01:20.5]} 82. f5 {[%clk 0:00:18.1]} 82... Kf7 {[%clk 0:01:21.2]} 83. Ke5
{[%clk 0:00:18.3]} 83... Ke7 {[%clk 0:01:21.8]} 84. f6+ {[%clk 0:00:18.7]} 84...
Kf7 {[%clk 0:01:22.4]} 85. Kf5 {[%clk 0:00:19.4]} 85... Kf8 {[%clk 0:01:23]} 86.
Kg5 {[%clk 0:00:20]} 86... Kg8 {[%clk 0:01:23.6]} 87. Kxh5 {[%clk 0:00:20.2]}
1-0

[Event "Late-Titled-Tuesday-Blitz-May-28-2024"]
[Site "Chess.com"]
[Date "2024.05.28"]
[Round "6"]
[White "MaiqMaster"]
[Black "KingCyber19"]
[Result "0-1"]
[WhiteElo "2460"]
[BlackElo "2622"]
[TimeControl "180+1"]
[EndTime "15:07:38 PDT"]
[Termination "KingCyber19 won by resignation"]

1. e4 {[%clk 0:03:00.9]} 1... e5 {[%clk 0:02:47]} 2. Nf3 {[%clk 0:02:53.9]} 2...
Nc6 {[%clk 0:02:45.7]} 3. Bb5 {[%clk 0:02:51.3]} 3... a6 {[%clk 0:02:45.9]} 4.
Ba4 {[%clk 0:02:39.7]} 4... Nf6 {[%clk 0:02:45.6]} 5. O-O {[%clk 0:02:19.6]}
5... b5 {[%clk 0:02:42.3]} 6. Bb3 {[%clk 0:02:19.6]} 6... Bc5 {[%clk 0:02:42.1]}
7. c3 {[%clk 0:02:17.7]} 7... d6 {[%clk 0:02:39.8]} 8. d4 {[%clk 0:02:17.4]}
8... Bb6 {[%clk 0:02:39.9]} 9. a4 {[%clk 0:02:16.4]} 9... Rb8 {[%clk 0:02:40.2]}
10. axb5 {[%clk 0:02:16.2]} 10... axb5 {[%clk 0:02:40]} 11. Na3 {[%clk
0:02:16.9]} 11... O-O {[%clk 0:02:24.7]} 12. Nxb5 {[%clk 0:02:15.6]} 12... Bg4
{[%clk 0:02:23.7]} 13. h3 {[%clk 0:02:10.6]} 13... Bxf3 {[%clk 0:02:19]} 14.
gxf3 {[%clk 0:02:11.5]} 14... Nh5 {[%clk 0:02:16.4]} 15. f4 {[%clk 0:02:11.7]}
15... Nxf4 {[%clk 0:02:15.3]} 16. Bxf4 {[%clk 0:02:12]} 16... exf4 {[%clk
0:02:16.2]} 17. Qg4 {[%clk 0:02:01.8]} 17... Ne7 {[%clk 0:02:10.9]} 18. Bc2
{[%clk 0:01:54.3]} 18... c5 {[%clk 0:01:33.2]} 19. e5 {[%clk 0:01:45]} 19...
dxe5 {[%clk 0:01:27.2]} 20. dxe5 {[%clk 0:01:45.9]} 20... Ng6 {[%clk 0:01:26.9]}
21. Rad1 {[%clk 0:01:34.2]} 21... Qe8 {[%clk 0:01:17.9]} 22. Bxg6 {[%clk
0:01:20.8]} 22... hxg6 {[%clk 0:01:13.1]} 23. Qe2 {[%clk 0:01:17]} 23... f3
{[%clk 0:01:09]} 24. Qd3 {[%clk 0:01:08.7]} 24... Qxe5 {[%clk 0:01:09.1]} 25.
Qxf3 {[%clk 0:01:07.6]} 25... Ba5 {[%clk 0:00:54.8]} 26. Rd5 {[%clk 0:00:54.7]}
26... Qe7 {[%clk 0:00:51.7]} 27. Nd6 {[%clk 0:00:40.2]} 27... Rxb2 {[%clk
0:00:47.8]} 28. Nc4 {[%clk 0:00:39.3]} 28... Ra2 {[%clk 0:00:43.8]} 29. Rfd1
{[%clk 0:00:36]} 29... Bc7 {[%clk 0:00:40.6]} 30. Ne3 {[%clk 0:00:27.6]} 30...
Rd8 {[%clk 0:00:28.4]} 31. Rxd8+ {[%clk 0:00:26.4]} 31... Bxd8 {[%clk
0:00:29.3]} 32. Qd5 {[%clk 0:00:22.8]} 32... Qg5+ {[%clk 0:00:27.5]} 33. Qxg5
{[%clk 0:00:19.3]} 33... Bxg5 {[%clk 0:00:28.4]} 34. Rd5 {[%clk 0:00:19.2]}
34... Bh4 {[%clk 0:00:22.4]} 35. Ng4 {[%clk 0:00:14.4]} 35... f5 {[%clk
0:00:21.4]} 36. Ne5 {[%clk 0:00:10.3]} 36... Bxf2+ {[%clk 0:00:19.7]} 37. Kf1
{[%clk 0:00:10.9]} 37... Kh7 {[%clk 0:00:20.5]} 38. Nf3 {[%clk 0:00:08.1]} 38...
Be3 {[%clk 0:00:19]} 39. Ke1 {[%clk 0:00:05.7]} 39... Kh6 {[%clk 0:00:17.3]} 40.
Rd8 {[%clk 0:00:04.5]} 40... g5 {[%clk 0:00:16.9]} 41. Ne5 {[%clk 0:00:02.6]}
41... g6 {[%clk 0:00:11.1]} 42. Rd7 {[%clk 0:00:02.2]} 42... Bf4 {[%clk
0:00:07.1]} 43. Nf7+ {[%clk 0:00:02.8]} 43... Kh5 {[%clk 0:00:07.7]} 44. Nxg5
{[%clk 0:00:03.6]} 44... Kxg5 {[%clk 0:00:07.5]} 45. Rd3 {[%clk 0:00:04.2]}
45... Rg2 {[%clk 0:00:06.3]} 46. Rf3 {[%clk 0:00:04.2]} 46... Rg3 {[%clk
0:00:06.7]} 47. Rf2 {[%clk 0:00:04.5]} 47... Rxh3 {[%clk 0:00:06.4]} 48. Rg2+
{[%clk 0:00:05.2]} 48... Rg3 {[%clk 0:00:06.8]} 49. Rf2 {[%clk 0:00:05.5]} 49...
Rxc3 {[%clk 0:00:06.3]} 50. Ke2 {[%clk 0:00:06.1]} 50... Rc2+ {[%clk 0:00:05.8]}
51. Kf1 {[%clk 0:00:07]} 51... Rxf2+ {[%clk 0:00:06.5]} 52. Kxf2 {[%clk
0:00:07.9]} 52... c4 {[%clk 0:00:07.3]} 0-1

[Event "Late-Titled-Tuesday-Blitz-May-28-2024"]
[Site "Chess.com"]
[Date "2024.05.28"]
[Round "6"]
[White "OparinGrigoriy"]
[Black "K_A_S_T_O_R"]
[Result "1-0"]
[WhiteElo "3063"]
[BlackElo "2852"]
[TimeControl "180+1"]
[EndTime "15:07:39 PDT"]
[Termination "OparinGrigoriy won by checkmate"]

1. Nf3 {[%clk 0:03:00.9]} 1... c5 {[%clk 0:03:00]} 2. c4 {[%clk 0:03:00.2]} 2...
Nf6 {[%clk 0:02:59.1]} 3. Nc3 {[%clk 0:03:00.7]} 3... e6 {[%clk 0:02:59.5]} 4.
g3 {[%clk 0:03:00]} 4... b6 {[%clk 0:02:59.5]} 5. e4 {[%clk 0:02:58.9]} 5... Bb7
{[%clk 0:02:52.9]} 6. Qe2 {[%clk 0:02:59.5]} 6... Nc6 {[%clk 0:02:51.3]} 7. Bg2
{[%clk 0:02:59.5]} 7... Nd4 {[%clk 0:02:37.6]} 8. Nxd4 {[%clk 0:02:55.7]} 8...
cxd4 {[%clk 0:02:37.3]} 9. Nb1 {[%clk 0:02:33.1]} 9... e5 {[%clk 0:02:30.3]} 10.
O-O {[%clk 0:02:32.5]} 10... d6 {[%clk 0:02:27.5]} 11. d3 {[%clk 0:02:32.5]}
11... Be7 {[%clk 0:02:27.5]} 12. f4 {[%clk 0:02:32]} 12... a6 {[%clk 0:02:23.1]}
13. Nd2 {[%clk 0:02:32.4]} 13... b5 {[%clk 0:02:22.5]} 14. b3 {[%clk 0:02:30.4]}
14... O-O {[%clk 0:02:14.5]} 15. Nf3 {[%clk 0:02:30.1]} 15... Nd7 {[%clk
0:02:14.2]} 16. g4 {[%clk 0:02:24.1]} 16... bxc4 {[%clk 0:02:10.7]} 17. bxc4
{[%clk 0:02:24.1]} 17... Nc5 {[%clk 0:01:52.1]} 18. fxe5 {[%clk 0:02:20.5]}
18... dxe5 {[%clk 0:01:49.9]} 19. Nxe5 {[%clk 0:02:21.4]} 19... Qc7 {[%clk
0:01:44.2]} 20. Nf3 {[%clk 0:02:18.6]} 20... Rad8 {[%clk 0:01:42.5]} 21. g5
{[%clk 0:02:14.1]} 21... Bc8 {[%clk 0:01:36.1]} 22. Nh4 {[%clk 0:02:13.3]} 22...
g6 {[%clk 0:01:35.5]} 23. Bf4 {[%clk 0:02:06.9]} 23... Qa5 {[%clk 0:01:26.6]}
24. Nf3 {[%clk 0:01:53.4]} 24... Bg4 {[%clk 0:01:17.3]} 25. h3 {[%clk
0:01:53.6]} 25... Bxf3 {[%clk 0:01:11.3]} 26. Rxf3 {[%clk 0:01:54.5]} 26... Ne6
{[%clk 0:01:11.4]} 27. h4 {[%clk 0:01:50]} 27... Nxf4 {[%clk 0:01:02.9]} 28.
Rxf4 {[%clk 0:01:50.9]} 28... Bd6 {[%clk 0:01:03.3]} 29. Rf3 {[%clk 0:01:51.2]}
29... Qe5 {[%clk 0:01:02.2]} 30. Bh3 {[%clk 0:01:51.5]} 30... f6 {[%clk
0:00:58.9]} 31. gxf6 {[%clk 0:01:47.5]} 31... Rxf6 {[%clk 0:00:59.3]} 32. Raf1
{[%clk 0:01:48]} 32... Rdf8 {[%clk 0:00:50.3]} 33. Rxf6 {[%clk 0:01:38.3]} 33...
Rxf6 {[%clk 0:00:50.7]} 34. Rxf6 {[%clk 0:01:38.8]} 34... Qxf6 {[%clk
0:00:51.2]} 35. Qg4 {[%clk 0:01:38.9]} 35... Bf4 {[%clk 0:00:46.9]} 36. Kg2
{[%clk 0:01:33.8]} 36... Kg7 {[%clk 0:00:45]} 37. c5 {[%clk 0:01:31.8]} 37...
Be3 {[%clk 0:00:41]} 38. Qg3 {[%clk 0:01:29.5]} 38... Bf4 {[%clk 0:00:38.7]} 39.
Qf2 {[%clk 0:01:28.6]} 39... Qe5 {[%clk 0:00:32.9]} 40. c6 {[%clk 0:01:28.8]}
40... Be3 {[%clk 0:00:32.5]} 41. Qg3 {[%clk 0:01:21]} 41... Qc5 {[%clk
0:00:25.5]} 42. Bd7 {[%clk 0:00:46.1]} 42... Qc2+ {[%clk 0:00:22.1]} 43. Kh3
{[%clk 0:00:46.5]} 43... Qxd3 {[%clk 0:00:19.3]} 44. c7 {[%clk 0:00:39.3]} 44...
Qxe4 {[%clk 0:00:18.4]} 45. Qg2 {[%clk 0:00:32.2]} 45... Qd3 {[%clk 0:00:18.5]}
46. Qf3 {[%clk 0:00:28.6]} 46... Qd2 {[%clk 0:00:14.3]} 47. c8=Q {[%clk
0:00:28.6]} 47... Bf4 {[%clk 0:00:14.8]} 48. h5 {[%clk 0:00:06.4]} 48... Qh2+
{[%clk 0:00:09.7]} 49. Kg4 {[%clk 0:00:06.9]} 49... gxh5+ {[%clk 0:00:10]} 50.
Kf5 {[%clk 0:00:07.4]} 50... Be5 {[%clk 0:00:05.3]} 51. Be6 {[%clk 0:00:06.8]}
51... Kh6 {[%clk 0:00:05.3]} 52. Qf8+ {[%clk 0:00:06.7]} 52... Bg7 {[%clk
0:00:05.7]} 53. Qc5 {[%clk 0:00:05.6]} 53... Qg1 {[%clk 0:00:03]} 54. Qf4+
{[%clk 0:00:05.7]} 54... Qg5+ {[%clk 0:00:01.1]} 55. Qxg5# {[%clk 0:00:06.6]}
1-0

[Event "Late-Titled-Tuesday-Blitz-May-28-2024"]
[Site "Chess.com"]
[Date "2024.05.28"]
[Round "6"]
[White "carokannlover213"]
[Black "TigrVShlyape"]
[Result "1/2-1/2"]
[WhiteElo "2753"]
[BlackElo "2910"]
[TimeControl "180+1"]
[EndTime "15:07:41 PDT"]
[Termination "Game drawn by agreement"]

1. e4 {[%clk 0:03:00.9]} 1... c5 {[%clk 0:02:59.5]} 2. Nf3 {[%clk 0:03:00.1]}
2... e6 {[%clk 0:02:59.9]} 3. d4 {[%clk 0:03:00.5]} 3... cxd4 {[%clk 0:03:00.2]}
4. Nxd4 {[%clk 0:03:01.4]} 4... a6 {[%clk 0:03:00.6]} 5. c4 {[%clk 0:03:01.9]}
5... Nf6 {[%clk 0:02:49.7]} 6. Nc3 {[%clk 0:03:02]} 6... d6 {[%clk 0:02:49.4]}
7. f4 {[%clk 0:03:00.6]} 7... b6 {[%clk 0:02:48.3]} 8. Be3 {[%clk 0:03:00]} 8...
Bb7 {[%clk 0:02:48.5]} 9. Bd3 {[%clk 0:03:00.4]} 9... Nbd7 {[%clk 0:02:48.4]}
10. Qf3 {[%clk 0:02:54.8]} 10... g6 {[%clk 0:02:46.1]} 11. O-O {[%clk
0:02:53.1]} 11... Bg7 {[%clk 0:02:46.2]} 12. b4 {[%clk 0:02:50.9]} 12... O-O
{[%clk 0:02:45.8]} 13. Rac1 {[%clk 0:02:38.9]} 13... e5 {[%clk 0:02:45.3]} 14.
Nb3 {[%clk 0:02:32.1]} 14... exf4 {[%clk 0:02:43.6]} 15. Bxf4 {[%clk 0:02:31.6]}
15... Ne5 {[%clk 0:02:38.3]} 16. Bxe5 {[%clk 0:02:17.1]} 16... dxe5 {[%clk
0:02:38.2]} 17. Rcd1 {[%clk 0:02:16.2]} 17... Qe7 {[%clk 0:02:35.8]} 18. c5
{[%clk 0:02:13.5]} 18... bxc5 {[%clk 0:02:34.3]} 19. Nxc5 {[%clk 0:02:13.4]}
19... a5 {[%clk 0:02:31.7]} 20. a3 {[%clk 0:02:04.1]} 20... axb4 {[%clk
0:02:31.2]} 21. axb4 {[%clk 0:02:05]} 21... Rab8 {[%clk 0:02:21.8]} 22. Kh1
{[%clk 0:01:23.5]} 22... Bc8 {[%clk 0:02:21.1]} 23. Rb1 {[%clk 0:01:20.4]} 23...
Kh8 {[%clk 0:01:59.7]} 24. Bc4 {[%clk 0:01:19.4]} 24... h5 {[%clk 0:01:46.7]}
25. h3 {[%clk 0:01:16.2]} 25... h4 {[%clk 0:01:45.2]} 26. Nd5 {[%clk 0:01:14.9]}
26... Nxd5 {[%clk 0:01:44]} 27. Bxd5 {[%clk 0:01:12.3]} 27... f5 {[%clk
0:01:40.6]} 28. Qd3 {[%clk 0:01:09.5]} 28... f4 {[%clk 0:01:26.4]} 29. Qc4
{[%clk 0:01:04.1]} 29... f3 {[%clk 0:01:25.8]} 30. Be6 {[%clk 0:00:34.3]} 30...
fxg2+ {[%clk 0:01:23.5]} 31. Kxg2 {[%clk 0:00:35.2]} 31... Bxe6 {[%clk 0:01:21]}
32. Qxe6 {[%clk 0:00:36.1]} 32... Qg5+ {[%clk 0:01:20.3]} 33. Qg4 {[%clk
0:00:31.2]} 33... Qd2+ {[%clk 0:01:16.8]} 34. Kh1 {[%clk 0:00:31.1]} 34... Rxb4
{[%clk 0:00:50.1]} 35. Qxh4+ {[%clk 0:00:14.2]} 35... Kg8 {[%clk 0:00:48.9]} 36.
Rxf8+ {[%clk 0:00:13.6]} 36... Bxf8 {[%clk 0:00:48.3]} 37. Rf1 {[%clk
0:00:05.4]} 37... Rb2 {[%clk 0:00:22.6]} 38. Qg3 {[%clk 0:00:04.3]} 38... Qh6
{[%clk 0:00:20.6]} 39. Ne6 {[%clk 0:00:04.1]} 39... Be7 {[%clk 0:00:20.1]} 40.
Qf3 {[%clk 0:00:04.1]} 40... Kh8 {[%clk 0:00:18.3]} 41. Kg1 {[%clk 0:00:02.7]}
41... Qh5 {[%clk 0:00:14.3]} 42. Qxh5+ {[%clk 0:00:02.1]} 42... gxh5 {[%clk
0:00:14.2]} 43. Kh1 {[%clk 0:00:01.6]} 43... Rb6 {[%clk 0:00:13.1]} 44. Nf8
{[%clk 0:00:01.9]} 44... Kg7 {[%clk 0:00:11.2]} 45. Nd7 {[%clk 0:00:01.7]} 45...
Rb4 {[%clk 0:00:11.4]} 46. Rf5 {[%clk 0:00:01.7]} 46... Rxe4 {[%clk 0:00:10.9]}
47. Nxe5 {[%clk 0:00:02.4]} 47... Bf6 {[%clk 0:00:09.2]} 48. Nf3 {[%clk
0:00:02.7]} 48... Kg6 {[%clk 0:00:08.5]} 49. Rd5 {[%clk 0:00:03.4]} 49... Re2
{[%clk 0:00:08.6]} 50. Kg1 {[%clk 0:00:03.7]} 50... Be7 {[%clk 0:00:07.3]} 51.
Re5 {[%clk 0:00:03.1]} 51... Rxe5 {[%clk 0:00:06.9]} 52. Nxe5+ {[%clk 0:00:04]}
52... Kf5 {[%clk 0:00:07.4]} 53. Nf3 {[%clk 0:00:04.3]} 53... Ke4 {[%clk
0:00:07.8]} 54. Kg2 {[%clk 0:00:05.2]} 54... Bf6 {[%clk 0:00:07.7]} 55. Nh2
{[%clk 0:00:06.1]} 55... Kf4 {[%clk 0:00:07.6]} 56. Nf1 {[%clk 0:00:07]} 56...
Bd4 {[%clk 0:00:07.1]} 57. Ng3 {[%clk 0:00:06.9]} 1/2-1/2

[Event "Late-Titled-Tuesday-Blitz-May-28-2024"]
[Site "Chess.com"]
[Date "2024.05.28"]
[Round "6"]
[White "SaiHanThiha"]
[Black "Tol_Tol"]
[Result "1-0"]
[WhiteElo "2516"]
[BlackElo "2352"]
[TimeControl "180+1"]
[EndTime "15:07:41 PDT"]
[Termination "SaiHanThiha won by checkmate"]

1. Nf3 {[%clk 0:03:00.9]} 1... Nf6 {[%clk 0:02:59.9]} 2. g3 {[%clk 0:02:58.8]}
2... g6 {[%clk 0:03:00.3]} 3. b3 {[%clk 0:02:58.2]} 3... Bg7 {[%clk 0:03:01.2]}
4. Bb2 {[%clk 0:02:59]} 4... d6 {[%clk 0:03:00.7]} 5. d4 {[%clk 0:02:58.7]} 5...
a5 {[%clk 0:02:52.3]} 6. Bg2 {[%clk 0:02:55.1]} 6... a4 {[%clk 0:02:51.9]} 7.
O-O {[%clk 0:02:55.7]} 7... O-O {[%clk 0:02:51.6]} 8. c4 {[%clk 0:02:53.6]} 8...
Nbd7 {[%clk 0:02:38.2]} 9. b4 {[%clk 0:02:52.3]} 9... Nb6 {[%clk 0:02:34.3]} 10.
Qc1 {[%clk 0:02:45.8]} 10... d5 {[%clk 0:02:29.5]} 11. Ne5 {[%clk 0:02:36.3]}
11... dxc4 {[%clk 0:02:18.4]} 12. Nxc4 {[%clk 0:02:34.8]} 12... c6 {[%clk
0:02:19]} 13. a3 {[%clk 0:02:22.7]} 13... Nxc4 {[%clk 0:02:14]} 14. Qxc4 {[%clk
0:02:21.4]} 14... Be6 {[%clk 0:02:14.7]} 15. Qc2 {[%clk 0:02:21.4]} 15... Bb3
{[%clk 0:02:07.6]} 16. Qd3 {[%clk 0:02:20.5]} 16... Qd7 {[%clk 0:01:49.2]} 17.
Nd2 {[%clk 0:02:12.8]} 17... Be6 {[%clk 0:01:42.1]} 18. Nc4 {[%clk 0:02:13.1]}
18... Qc7 {[%clk 0:01:11.6]} 19. e4 {[%clk 0:02:05.7]} 19... Rfd8 {[%clk
0:01:10.9]} 20. Rac1 {[%clk 0:02:00.7]} 20... Bxc4 {[%clk 0:01:02.1]} 21. Qxc4
{[%clk 0:01:56.7]} 21... Qb6 {[%clk 0:01:02.4]} 22. Rfd1 {[%clk 0:01:46.6]}
22... Nd7 {[%clk 0:01:00.5]} 23. h4 {[%clk 0:01:04.5]} 23... Qa6 {[%clk
0:00:35]} 24. Qc2 {[%clk 0:01:00.9]} 24... Rac8 {[%clk 0:00:32.2]} 25. h5 {[%clk
0:00:55.7]} 25... gxh5 {[%clk 0:00:28.7]} 26. Bf1 {[%clk 0:00:41.8]} 26... Qb6
{[%clk 0:00:27.3]} 27. Qxa4 {[%clk 0:00:34]} 27... Nf6 {[%clk 0:00:16.7]} 28.
Qc2 {[%clk 0:00:32.6]} 28... Ng4 {[%clk 0:00:15.2]} 29. Bh3 {[%clk 0:00:29.8]}
29... Qc7 {[%clk 0:00:14.6]} 30. Qe2 {[%clk 0:00:26.9]} 30... Qd7 {[%clk
0:00:13.7]} 31. f3 {[%clk 0:00:22.2]} 31... f5 {[%clk 0:00:05.9]} 32. exf5
{[%clk 0:00:19.5]} 32... Nf6 {[%clk 0:00:05.1]} 33. g4 {[%clk 0:00:12.1]} 33...
hxg4 {[%clk 0:00:04.3]} 34. fxg4 {[%clk 0:00:13]} 34... Qd6 {[%clk 0:00:02.8]}
35. Qh2 {[%clk 0:00:12.9]} 35... Qd5 {[%clk 0:00:01.5]} 36. Bg2 {[%clk 0:00:13]}
36... Qa2 {[%clk 0:00:01]} 37. Rc2 {[%clk 0:00:11.3]} 37... Rd6 {[%clk 0:00:01]}
38. g5 {[%clk 0:00:10.1]} 38... Nd5 {[%clk 0:00:00.9]} 39. Re2 {[%clk
0:00:08.8]} 39... Qb3 {[%clk 0:00:00.7]} 40. Rde1 {[%clk 0:00:07.8]} 40... Rcd8
{[%clk 0:00:01]} 41. Be4 {[%clk 0:00:07.8]} 41... Qc4 {[%clk 0:00:00.8]} 42. f6
{[%clk 0:00:08.2]} 42... exf6 {[%clk 0:00:01]} 43. Qxh7+ {[%clk 0:00:08.7]}
43... Kf8 {[%clk 0:00:01]} 44. Bg6 {[%clk 0:00:08.6]} 44... R6d7 {[%clk
0:00:01]} 45. Re8+ {[%clk 0:00:08.5]} 45... Rxe8 {[%clk 0:00:00.8]} 46. Rxe8#
{[%clk 0:00:09.4]} 1-0